[Event "IITU Masters 2019"]
[Site "Almaty"]
[Date "2019.02.26"]
[Round "7.1"]
[White "Zhalmakhanov, Ramazan"]
[Black "Markov, Mikhail"]
[Result "1-0"]
[ECO "B13"]
[WhiteElo "2324"]
[BlackElo "2368"]
[Annotator "NA"]
[PlyCount "77"]
[EventDate "2019.02.20"]
[EventType "tourn"]
[EventCountry "KAZ"]
[SourceTitle "playchess.com"]
[Source "ChessBase"]
[SourceQuality "1"]
[TimeControl "5400+30"]

1. e4 {[%emt 0:00:00]} c6 {[%emt 0:04:48]} 2. d4 {[%emt 0:00:00]} d5 {[%emt 0:00:05]} 3. exd5 {[%emt 0:00:06]} cxd5 {[%emt 0:00:03]} 4. c3 {[%emt 0:00:09]} Nc6 {[%emt 0:00:23]} 5. Bd3 {[%emt 0:00:06]} Nf6 {[%emt 0:00:05]} 6. Bf4 {[%emt 0:00:04]} Bg4 {[%emt 0:00:27]} 7. Qb3 {[%emt 0:00:06]} Qd7 {[%emt 0:00:26]} 8. Nd2 {[%emt 0:00:30]} e6 {[%emt 0:00:05]} 9. Ngf3 {[%emt 0:00:27]} Bd6 {[%emt 0:00:12]} 10. Ne5 {[%emt 0:02:31]} Qc7 {[%emt 0:00:05]} 11. Nxg4 {[%emt 0:20:35]} Bxf4 {[%emt 0:04:49]} 12. Nxf6+ {[%emt 0:00:08]} gxf6 {[%emt 0:00:01]} 13. Nf3 {[%emt 0:00:08]} O-O-O {[%emt 0:04:29]} 14. g3 {[%emt 0:09:35]} Bh6 {[%emt 0:09:53]} 15. O-O {[%emt 0:03:39]} f5 {[%emt 0:07:25]} 16. Rae1 {[%emt 0:05:56]} Rhg8 {[%emt 0:01:51]} 17. Qd1 {[%emt 0:00:30]} f4 {[%emt 0:01:22]} 18. Bb5 {[%emt 0:10:00]} Ne7 {[%emt 0:09:24]} 19. Bd3 {[%emt 0:02:15]} Bg5 {[%emt 0:15:37]} 20. Re5 {[%emt 0:08:07]} Bh6 {[%emt 0:14:28]} 21. Rh5 {[%emt 0:05:01]} Bg7 {[%emt 0:00:37]} 22. Rxh7 {[%emt 0:01:19]} f6 {[%emt 0:00:50]} 23. Re1 {[%emt 0:08:10]} e5 {[%emt 0:00:37]} 24. dxe5 {[%emt 0:00:36]} fxe5 {[%emt 0:00:04]} 25. Ng5 {[%emt 0:01:25]} fxg3 {[%emt 0:01:50]} 26. hxg3 {[%emt 0:00:34]} Qb6 {[%emt 0:01:38]} 27. Qg4+ {[%emt 0:10:21]} Kb8 {[%emt 0:03:03]} 28. Qe6 {[%emt 0:00:54]} Nc6 {[%emt 0:03:52]} 29. Nf7 {[%emt 0:02:28]} Rde8 {[%emt 0:01:23]} 30. Qxd5 {[%emt 0:00:57]} Bf8 {[%emt 0:00:38]} 31. Kg2 {[%emt 0:02:14]} Bc5 {[%emt 0:00:16]} 32. Re2 {[%emt 0:00:21]} a5 {[%emt 0:00:00]} 33. Nxe5 {[%emt 0:02:24]} Nxe5 {[%emt 0:03:52]} 34. Rxe5 {[%emt 0:00:15]} Rxe5 {[%emt 0:00:29]} 35. Qxe5+ {[%emt 0:00:21]} Bd6 {[%emt 0:00:05]} 36. Qb5 {[%emt 0:02:00]} Qxb5 {[%emt 0:02:34]} 37. Bxb5 {[%emt 0:00:02]} Bc5 {[%emt 0:00:05]} 38. f4 {[%emt 0:00:49]} Rd8 {[%emt 0:00:06]} 39. Rd7 {[%emt 0:00:06]} 1-0

[Event "IITU Masters 2019"]
[Site "Almaty"]
[Date "2019.02.26"]
[Round "7.2"]
[White "Rakhimzhan, Alen"]
[Black "Askarov, Bakhtiyar"]
[Result "1-0"]
[ECO "A57"]
[WhiteElo "2320"]
[BlackElo "2425"]
[Annotator "NA RC"]
[PlyCount "205"]
[EventDate "2019.02.20"]
[EventType "tourn"]
[EventCountry "KAZ"]
[SourceTitle "playchess.com"]
[Source "ChessBase"]
[SourceQuality "1"]
[TimeControl "5400+30"]

1. d4 {[%emt 0:18:40]} Nf6 {[%emt 0:00:00]} 2. c4 {[%emt 0:00:13]} c5 {[%emt 0:00:11]} 3. d5 {[%emt 0:00:10]} b5 {[%emt 0:03:28]} 4. cxb5 {[%emt 0:00:18]} a6 {[%emt 0:00:03]} 5. e3 {[%emt 0:00:15]} g6 {[%emt 0:06:36]} 6. Nc3 {[%emt 0:00:11]} Bg7 {[%emt 0:01:02]} 7. Nf3 {[%emt 0:00:18]} O-O {[%emt 0:00:26]} 8. a4 {[%emt 0:00:09]} e6 {[%emt 0:39:29]} 9. e4 {[%emt 0:02:22]} exd5 {[%emt 0:12:35]} 10. exd5 {[%emt 0:02:21]} Re8+ {[%emt 0:05:19]} 11. Be2 {[%emt 0:00:08]} axb5 {[%emt 0:03:25]} 12. Nxb5 {[%emt 0:00:35]} d6 {[%emt 0:00:54]} 13. O-O {[%emt 0:00:17]} Na6 {[%emt 0:03:09]} 14. Bf4 {[%emt 0:01:10]} Bf8 {[%emt 0:01:22]} 15. Nc3 {[%emt 0:08:09]} Nb4 {[%emt 0:00:45]} 16. Bb5 {[%emt 0:01:25]} Bd7 {[%emt 0:01:11]} 17. Qd2 {[%emt 0:00:19]} Bxb5 {[%emt 0:03:55]} 18. axb5 {[%emt 0:01:33]} Qb6 {[%emt 0:00:18]} 19. Ra3 {[%emt 0:13:09]} Qb7 {[%emt 0:00:46]} 20. Rd1 {[%emt 0:00:39]} Rab8 {[%emt 0:02:51]} 21. h3 {[%emt 0:12:50]} Ne4 {[%emt 0:03:31]} 22. Nxe4 {[%emt 0:00:19]} Rxe4 {[%emt 0:00:04]} 23. Bh6 {[%emt 0:01:07]} Qxb5 {[%emt 0:02:57]} 24. Bxf8 {[%emt 0:00:17]} Rxf8 {[%emt 0:00:02]} 25. Ra7 {[%emt 0:08:08]} Qe2 {[%emt 0:04:21]} 26. Rd7 {[%emt 0:03:12]} Qxd2 {[%emt 0:00:53]} 27. Rxd2 {[%emt 0:00:11]} Ree8 {[%emt 0:00:14]} 28. Rxd6 {[%emt 0:00:40]} Rd8 {[%emt 0:00:03]} 29. Rxd8 {[%emt 0:02:53]} Rxd8 {[%emt 0:00:09]} 30. d6 {[%emt 0:00:08]} f6 {[%emt 0:00:07]} 31. Ne1 {[%emt 0:03:58]} Kf7 {[%emt 0:01:02]} 32. Nc2 {[%emt 0:00:15]} Nc6 {[%emt 0:02:01]} 33. Rd5 {[%emt 0:00:18]} Ke6 {[%emt 0:00:57]} 34. Ne3 {[%emt 0:01:18]} c4 {[%emt 0:00:51]} 35. Rc5 {[%emt 0:01:46]} Ne5 {[%emt 0:00:39]} 36. Nxc4 {[%emt 0:01:35]} Nxc4 {[%emt 0:00:08]} 37. Rxc4 {[%emt 0:00:10]} Rxd6 {[%emt 0:00:03]} 38. Rc2 {[%emt 0:13:46]} Rd1+ {[%emt 0:00:14]} 39. Kh2 {[%emt 0:00:04]} Rd3 {[%emt 0:00:08]} 40. h4 {[%emt 0:02:58]} h5 {[%emt 0:00:12]} 41. g3 {[%emt 0:00:06]} Rb3 {[%emt 0:00:36]} 42. Kg2 {[%emt 0:00:09]} Kf5 {[%emt 0:00:30]} 43. Re2 {[%emt 0:01:58]} g5 {[%emt 0:01:04]} 44. Kh3 {[%emt 0:00:41]} Kg6 {[%emt 0:00:42]} 45. Rd2 {[%emt 0:00:36]} Kf5 {[%emt 0:00:05]} 46. Rc2 {[%emt 0:00:27]} Kg6 {[%emt 0:00:22]} 47. Rd2 {[%emt 0:00:42]} Kf5 {[%emt 0:00:05]} 48. hxg5 {[%emt 0:00:13]} fxg5 {[%emt 0:00:15]} 49. Kh2 {[%emt 0:00:13]} Kg4 {[%emt 0:01:19]} 50. Kg2 {[%emt 0:00:08]} Kf5 {[%emt 0:00:19]} 51. Rc2 {[%emt 0:00:11]} Kg4 {[%emt 0:00:52]} 52. Re2 {[%emt 0:01:20]} Kf5 {[%emt 0:00:21]} 53. Rd2 {[%emt 0:00:12]} Kg4 {[%emt 0:00:06]} 54. Rc2 {[%emt 0:00:06]} Kf5 {[%emt 0:00:05]} 55. Kh3 {[%emt 0:00:17]} Kg6 {[%emt 0:00:20]} 56. Kh2 {[%emt 0:00:43]} Kf5 {[%emt 0:00:06]} 57. Kg2 {[%emt 0:00:05]} Kg4 {[%emt 0:00:06]} 58. f3+ {[%emt 0:00:01]} Kf5 {[%emt 0:00:08]} 59. Rd2 {[%emt 0:00:26]} g4 {[%emt 0:01:32]} 60. f4 {[%emt 0:01:25]} Kg6 {[%emt 0:00:16]} 61. Rc2 {[%emt 0:01:16]} Kf5 {[%emt 0:00:15]} 62. Kf2 {[%emt 0:00:39]} Rf3+ {[%emt 0:00:43]} 63. Kg2 {[%emt 0:00:05]} Rb3 {[%emt 0:00:13]} 64. Rf2 {[%emt 0:00:51]} Kf6 {[%emt 0:00:35]} 65. Re2 {[%emt 0:00:09]} Kf5 {[%emt 0:00:05]} 66. Rd2 {[%emt 0:00:05]} Ke4 {[%emt 0:00:31]} 67. Kf2 {[%emt 0:00:35]} Rf3+ {[%emt 0:00:08]} 68. Kg2 {[%emt 0:00:05]} Rb3 {[%emt 0:00:05]} 69. Kh2 {[%emt 0:00:39]} Kf5 {[%emt 0:00:27]} 70. Kg2 {[%emt 0:00:19]} Ke4 {[%emt 0:00:06]} 71. Rc2 {[%emt 0:00:04]} Kf5 {[%emt 0:00:04]} 72. Rf2 {[%emt 0:00:41]} Kf6 {[%emt 0:00:08]} 73. Rc2 {[%emt 0:01:55]} Kf5 {[%emt 0:00:09]} 74. Rc5+ {[%emt 0:00:36]} Kg6 {[%emt 0:00:54]} 75. Rc6+ {[%emt 0:00:21]} Kf5 {[%emt 0:00:06]} 76. Rc5+ {[%emt 0:00:15]} Kg6 {[%emt 0:00:06]} 77. Kf2 {[%emt 0:00:53]} Rxb2+ {[%emt 0:01:09]} 78. Ke3 {[%emt 0:00:02]} Rb3+ {[%emt 0:00:56]} 79. Ke4 {[%emt 0:00:04]} Rxg3 {[%emt 0:02:58]} 80. Rc6+ {[%emt 0:00:01]} Kf7 {[%emt 0:01:36]} 81. Rc7+ {[%emt 0:01:32]} Ke8 {[%emt 0:01:25]} 82. Rh7 {[%emt 0:01:00]} Rh3 {[%emt 0:00:26]} 83. Ke5 {[%emt 0:00:27]} g3 {[%emt 0:00:51]} 84. Ke6 {[%emt 0:00:19]} Kd8 {[%emt 0:01:50]} 85. Kd6 {[%emt 0:00:13]} Ke8 {[%emt 0:00:18]} 86. Ke6 {[%emt 0:00:02]} Kf8 {[%emt 0:00:31]} 87. Kf6 {[%emt 0:00:14]} Ke8 {[%emt 0:00:38]} 88. Ke6 {[%emt 0:00:10]} Kf8 {[%emt 0:00:21]} 89. Kf6 {[%emt 0:00:02]} Ke8 {[%emt 0:00:39]} 90. Ke6 {[%emt 0:01:12]} Kf8 {[%emt 0:00:22]} 91. Kf6 {[%emt 0:00:52]} Ke8 {[%emt 0:00:06]} 92. Ke6 {[%emt 0:00:20]} Kf8 {[%emt 0:00:06]} 93. Kf6 {[%emt 0:00:46]} Ke8 {[%emt 0:00:07]} 94. Ke6 {[%emt 0:00:04]} Kf8 {[%emt 0:00:12]} 95. Kf6 Kg8 96. Ra7 Rh4 97. Ra8+ Kh7 98. Ra7+ Kh6 99. Ra8 Kh7 100. Ra7+ Kg8 101. Rg7+ Kh8 102. Rxg3 Rxf4+ 103. Kg5 1-0

[Event "IITU Masters 2019"]
[Site "Almaty"]
[Date "2019.02.26"]
[Round "7.4"]
[White "Tologontegin, Semetey"]
[Black "Daurimbetov, A."]
[Result "1-0"]
[ECO "A11"]
[WhiteElo "2372"]
[BlackElo "2287"]
[Annotator "NA"]
[PlyCount "103"]
[EventDate "2019.02.20"]
[EventType "tourn"]
[EventCountry "KAZ"]
[SourceTitle "playchess.com"]
[Source "ChessBase"]
[SourceQuality "1"]
[TimeControl "5400+30"]

1. c4 {[%emt 0:00:00]} c6 {[%emt 0:09:55]} 2. Nf3 {[%emt 0:01:18]} d5 {[%emt 0:00:05]} 3. e3 {[%emt 0:00:06]} Nf6 {[%emt 0:00:10]} 4. Nc3 {[%emt 0:00:19]} a6 {[%emt 0:00:09]} 5. b3 {[%emt 0:08:22]} Bg4 {[%emt 0:00:58]} 6. Be2 {[%emt 0:00:48]} e6 {[%emt 0:00:18]} 7. h3 {[%emt 0:04:26]} Bh5 {[%emt 0:00:15]} 8. g4 {[%emt 0:00:27]} Bg6 {[%emt 0:00:02]} 9. Ne5 {[%emt 0:05:42]} Nbd7 {[%emt 0:01:54]} 10. Nxg6 {[%emt 0:01:00]} hxg6 {[%emt 0:00:05]} 11. Bb2 {[%emt 0:01:36]} Bd6 {[%emt 0:00:17]} 12. d4 {[%emt 0:01:20]} Bb4 {[%emt 0:00:46]} 13. Kf1 {[%emt 0:01:56]} Bxc3 {[%emt 0:05:10]} 14. Bxc3 {[%emt 0:00:57]} Ne4 {[%emt 0:00:06]} 15. Be1 {[%emt 0:00:16]} Qg5 {[%emt 0:00:22]} 16. Kg2 {[%emt 0:09:01]} f5 {[%emt 0:01:40]} 17. h4 {[%emt 0:03:51]} Qh6 {[%emt 0:02:22]} 18. f3 {[%emt 0:00:38]} Nd6 {[%emt 0:03:34]} 19. Bg3 {[%emt 0:01:04]} Nf7 {[%emt 0:00:49]} 20. g5 {[%emt 0:00:41]} Qh7 {[%emt 0:00:07]} 21. e4 {[%emt 0:00:31]} O-O {[%emt 0:01:55]} 22. cxd5 {[%emt 0:05:20]} exd5 {[%emt 0:07:24]} 23. exd5 {[%emt 0:00:28]} cxd5 {[%emt 0:01:18]} 24. Rc1 {[%emt 0:00:15]} f4 {[%emt 0:00:27]} 25. Bxf4 {[%emt 0:08:28]} Nh6 {[%emt 0:02:58]} 26. Bg3 {[%emt 0:09:07]} Nf5 {[%emt 0:00:11]} 27. Bf2 {[%emt 0:00:06]} Rf7 {[%emt 0:01:41]} 28. Rc7 {[%emt 0:03:15]} Nf8 {[%emt 0:02:50]} 29. Rxf7 {[%emt 0:07:19]} Kxf7 {[%emt 0:04:05]} 30. Qd2 {[%emt 0:00:02]} Ne6 {[%emt 0:00:21]} 31. f4 {[%emt 0:00:18]} Re8 {[%emt 0:10:22]} 32. Bf3 {[%emt 0:02:23]} Rd8 {[%emt 0:01:33]} 33. h5 {[%emt 0:10:01]} gxh5 {[%emt 0:00:22]} 34. Rxh5 {[%emt 0:00:07]} Qg8 {[%emt 0:00:04]} 35. g6+ {[%emt 0:03:17]} Kxg6 {[%emt 0:00:19]} 36. Bg4 {[%emt 0:04:19]} Rf8 {[%emt 0:00:16]} 37. Kg1 {[%emt 0:00:32]} Rf6 {[%emt 0:02:00]} 38. Qc2 {[%emt 0:01:24]} Qf8 {[%emt 0:00:53]} 39. Be3 {[%emt 0:00:24]} a5 {[%emt 0:02:08]} 40. a4 {[%emt 0:00:35]} b6 {[%emt 0:00:39]} 41. Kh1 {[%emt 0:02:01]} Rf7 {[%emt 0:01:25]} 42. Rh3 {[%emt 0:01:57]} Qb4 {[%emt 0:02:56]} 43. Bd2 {[%emt 0:00:46]} Nexd4 {[%emt 0:02:14]} 44. Bxf5+ {[%emt 0:03:18]} Rxf5 {[%emt 0:00:09]} 45. Rg3+ {[%emt 0:00:07]} Kh6 {[%emt 0:02:09]} 46. Rh3+ {[%emt 0:00:12]} Kg6 {[%emt 0:00:05]} 47. Qd3 {[%emt 0:00:40]} Qc5 {[%emt 0:02:02]} 48. Bc3 {[%emt 0:00:51]} Ne2 {[%emt 0:03:54]} 49. Qxe2 {[%emt 0:00:17]} d4 {[%emt 0:00:16]} 50. Qe6+ {[%emt 0:00:59]} Rf6 {[%emt 0:00:05]} 51. Qe8+ {[%emt 0:00:31]} Rf7 {[%emt 0:00:02]} 52. Rg3+ {[%emt 0:00:35] b5} 1-0